[Event "Blitz tournament"]
[Site "Biel, Switzerland"]
[Date "2021.07.31"]
[Round "4.4"]
[White "Studer, Noël"]
[Black "Lagarde, Maxime"]
[Result "1-0"]
[ECO "E90"]
[WhiteElo "2451"]
[BlackElo "2630"]
[PlyCount "113"]
[EventDate "2021.??.??"]
[EventType "blitz"]
[TimeControl "3+2"]
[WhiteClock "0:00:09"]
[BlackClock "0:00:04"]

1. d4 {[%emt 0:00:00]} Nf6 {[%emt 0:00:00]} 2. c4 {[%emt 0:00:00]} c5 {[%emt 0:
00:00]} 3. d5 {[%emt 0:00:00]} g6 {[%emt 0:00:00]} 4. Nc3 {[%emt 0:00:00]} Bg7
{[%emt 0:00:00]} 5. e4 {[%emt 0:00:00]} O-O {[%emt 0:00:00]} 6. Nf3 {[%emt 0:
00:00]} d6 {[%emt 0:00:00]} 7. h3 {[%emt 0:00:00]} e6 {[%emt 0:00:00]} 8. Bd3 {
[%emt 0:00:00]} Nbd7 {[%emt 0:00:00]} 9. O-O {[%emt 0:00:00]} e5 {[%emt 0:00:
00]} 10. Bg5 {[%emt 0:00:00]} h6 {[%emt 0:00:00]} 11. Be3 {[%emt 0:00:00]} Nh7
{[%emt 0:00:00]} 12. Qd2 {[%emt 0:00:00]} f5 {[%emt 0:00:00]} 13. exf5 {
[%emt 0:00:00]} gxf5 {[%emt 0:00:00]} 14. Bxh6 {[%emt 0:00:00]} e4 {[%emt 0:00:
00]} 15. Nxe4 {[%emt 0:00:00]} fxe4 {[%emt 0:00:00]} 16. Bxe4 {[%emt 0:00:00]}
Qf6 {[%emt 0:00:00]} 17. Bxg7 {[%emt 0:00:00]} Qxg7 {[%emt 0:00:00]} 18. Rae1 {
[%emt 0:00:00]} Ndf6 {[%emt 0:00:00]} 19. Kh2 {[%emt 0:00:00]} Nxe4 {[%emt 0:
00:00]} 20. Rxe4 {[%emt 0:00:00]} Bf5 {[%emt 0:00:00]} 21. Rf4 {[%emt 0:00:00]}
Rf6 {[%emt 0:00:00]} 22. Re1 {[%emt 0:00:00]} Raf8 {[%emt 0:00:00]} 23. Nh4 {
[%emt 0:00:00]} Bd7 {[%emt 0:00:11]} 24. Rxf6 {[%emt 0:00:00]} Qxf6 {[%emt 0:
00:01]} 25. Nf3 {[%emt 0:00:00]} Kh8 {[%emt 0:00:07]} 26. Re4 {[%emt 0:00:00]}
Rg8 {[%emt 0:00:07]} 27. Rf4 {[%emt 0:00:10]} Qe7 {[%emt 0:00:19]} 28. Rh4 {
[%emt 0:00:15]} Rg7 {[%emt 0:00:01]} 29. Qf4 {[%emt 0:00:07]} Kg8 {[%emt 0:00:
02]} 30. Rh6 {[%emt 0:00:05]} Rf7 {[%emt 0:00:06]} 31. Qxd6 {[%emt 0:00:02]}
Qxd6+ {[%emt 0:00:04]} 32. Rxd6 {[%emt 0:00:01]} Re7 {[%emt 0:00:02]} 33. a3 {
[%emt 0:00:08]} b6 {[%emt 0:00:01]} 34. b4 {[%emt 0:00:01]} Nf8 {[%emt 0:00:04]
} 35. bxc5 {[%emt 0:00:03]} bxc5 {[%emt 0:00:01]} 36. Ra6 {[%emt 0:00:07]} Re2
{[%emt 0:00:02]} 37. Kg3 {[%emt 0:00:03]} Rc2 {[%emt 0:00:04]} 38. Ne5 {
[%emt 0:00:01]} Bf5 {[%emt 0:00:05]} 39. Rxa7 {[%emt 0:00:06]} Ng6 {[%emt 0:00:
01]} 40. Nxg6 {[%emt 0:00:06]} Bxg6 {[%emt 0:00:01]} 41. d6 {[%emt 0:00:01]}
Rd2 {[%emt 0:00:03]} 42. Rc7 {[%emt 0:00:04]} Rxd6 {[%emt 0:00:02]} 43. Rxc5 {
[%emt 0:00:01]} Rd3+ {[%emt 0:00:01]} 44. Kf4 {[%emt 0:00:07]} Rxa3 {[%emt 0:
00:01]} 45. Rc7 {[%emt 0:00:02]} Ra2 {[%emt 0:00:02]} 46. Kg3 {[%emt 0:00:01]}
Bf7 {[%emt 0:00:02]} 47. c5 {[%emt 0:00:03]} Rc2 {[%emt 0:00:01]} 48. f3 {
[%emt 0:00:03]} Bc4 {[%emt 0:00:04]} 49. c6 {[%emt 0:00:04]} Bd5 {[%emt 0:00:
01]} 50. Rd7 {[%emt 0:00:01]} Bxc6 {[%emt 0:00:07]} 51. Rc7 {[%emt 0:00:01]}
Kf8 {[%emt 0:00:00]} 52. h4 {[%emt 0:00:01]} Ke8 53. h5 {[%emt 0:00:01]} Kd8 {
[%emt 0:00:01]} 54. Rg7 {[%emt 0:00:02]} Bb5 {[%emt 0:00:07]} 55. h6 {[%emt 0:
00:03]} Bf1 {[%emt 0:00:03]} 56. h7 {[%emt 0:00:01]} Rxg2+ {[%emt 0:00:02]} 57.
Kf4 {[%emt 0:00:02]} 1-0

[Event "Blitz tournament"]
[Site "Biel, Switzerland"]
[Date "2021.07.31"]
[Round "5.1"]
[White "Lagarde, Maxime"]
[Black "Kamsky, Gata"]
[Result "1-0"]
[ECO "B00"]
[WhiteElo "2630"]
[BlackElo "2644"]
[PlyCount "67"]
[EventDate "2021.??.??"]
[EventType "blitz"]
[TimeControl "3+2"]
[WhiteClock "0:00:29"]
[BlackClock "0:00:09"]

1. e4 {[%emt 0:00:00]} b6 {[%emt 0:00:00]} 2. d4 {[%emt 0:00:00]} Bb7 {[%emt 0:
00:00]} 3. Nc3 {[%emt 0:00:00]} e6 {[%emt 0:00:00]} 4. Bd3 {[%emt 0:00:00]} d6
{[%emt 0:00:00]} 5. f4 {[%emt 0:00:00]} Qh4+ {[%emt 0:00:00]} 6. g3 {[%emt 0:
00:00]} Qe7 {[%emt 0:00:00]} 7. Qe2 {[%emt 0:00:00]} g6 {[%emt 0:00:00]} 8. h4
{[%emt 0:00:00]} h5 {[%emt 0:00:00]} 9. Nf3 {[%emt 0:00:00]} Bg7 {[%emt 0:00:
00]} 10. Be3 {[%emt 0:00:00]} Nf6 {[%emt 0:00:00]} 11. O-O-O {[%emt 0:00:00]}
Ng4 {[%emt 0:00:00]} 12. Kb1 {[%emt 0:00:00]} Nd7 {[%emt 0:00:00]} 13. e5 {
[%emt 0:00:00]} Nxe3 {[%emt 0:00:00]} 14. Qxe3 {[%emt 0:00:00]} d5 {[%emt 0:00:
00]} 15. Nb5 {[%emt 0:00:00]} Nf8 {[%emt 0:00:00]} 16. Ng5 {[%emt 0:00:00]} a6
{[%emt 0:00:00]} 17. Nc3 {[%emt 0:00:00]} c5 {[%emt 0:00:00]} 18. Be2 {[%emt 0:
00:00]} O-O-O {[%emt 0:00:00]} 19. Na4 {[%emt 0:00:00]} Nd7 {[%emt 0:00:00]}
20. dxc5 {[%emt 0:00:00]} bxc5 {[%emt 0:00:00]} 21. c4 {[%emt 0:00:00]} d4 {
[%emt 0:00:16]} 22. Qa3 {[%emt 0:00:00]} Bh6 {[%emt 0:00:05]} 23. Bf3 {[%emt 0:
00:00]} Bxg5 {[%emt 0:00:02]} 24. Bxb7+ {[%emt 0:00:00]} Kxb7 {[%emt 0:00:01]}
25. hxg5 {[%emt 0:00:00]} Rhe8 {[%emt 0:00:03]} 26. Rd3 {[%emt 0:00:00]} Ka7 {
[%emt 0:00:01]} 27. Rhd1 {[%emt 0:00:02]} Rb8 {[%emt 0:00:02]} 28. Nc3 {
[%emt 0:00:15]} Rb6 {[%emt 0:00:10]} 29. Nb5+ {[%emt 0:00:05]} Kb8 {[%emt 0:00:
01]} 30. Nd6 {[%emt 0:00:03]} Rd8 {[%emt 0:00:02]} 31. Rb3 {[%emt 0:00:09]} Ka7
{[%emt 0:00:19]} 32. Rxb6 {[%emt 0:00:02]} Nxb6 {[%emt 0:00:01]} 33. Qxc5 {
[%emt 0:00:05]} Qd7 {[%emt 0:00:02]} 34. Rxd4 {[%emt 0:00:06]} 1-0

[Event "Blitz tournament"]
[Site "Biel, Switzerland"]
[Date "2021.07.31"]
[Round "5.2"]
[White "Keymer, Vincent"]
[Black "Studer, Noël"]
[Result "1-0"]
[ECO "A17"]
[WhiteElo "2474"]
[BlackElo "2451"]
[PlyCount "93"]
[EventDate "2021.??.??"]
[EventType "blitz"]
[TimeControl "3+2"]
[WhiteClock "0:00:06"]
[BlackClock "0:00:03"]

1. Nf3 {[%emt 0:00:00]} d5 {[%emt 0:00:00]} 2. e3 {[%emt 0:00:00]} Nf6 {
[%emt 0:00:00]} 3. c4 {[%emt 0:00:00]} e6 {[%emt 0:00:00]} 4. Nc3 {[%emt 0:00:
00]} c5 {[%emt 0:00:00]} 5. cxd5 {[%emt 0:00:00]} exd5 {[%emt 0:00:00]} 6. Bb5+
{[%emt 0:00:00]} Nbd7 {[%emt 0:00:00]} 7. O-O {[%emt 0:00:00]} a6 {[%emt 0:00:
00]} 8. Be2 {[%emt 0:00:00]} Nb8 {[%emt 0:00:00]} 9. d4 {[%emt 0:00:00]} Nc6 {
[%emt 0:00:00]} 10. b3 {[%emt 0:00:00]} Bg4 {[%emt 0:00:00]} 11. Bb2 {[%emt 0:
00:00]} Bxf3 {[%emt 0:00:00]} 12. Bxf3 {[%emt 0:00:00]} cxd4 {[%emt 0:00:00]}
13. exd4 {[%emt 0:00:00]} Be7 {[%emt 0:00:00]} 14. Qd3 {[%emt 0:00:00]} O-O {
[%emt 0:00:00]} 15. Rad1 {[%emt 0:00:00]} Qa5 {[%emt 0:00:00]} 16. a3 {[%emt 0:
00:00]} Rad8 {[%emt 0:00:00]} 17. b4 {[%emt 0:00:00]} Qc7 {[%emt 0:00:00]} 18.
Rfe1 {[%emt 0:00:00]} Bd6 {[%emt 0:00:00]} 19. g3 {[%emt 0:00:00]} Ne7 {
[%emt 0:00:00]} 20. Na4 {[%emt 0:00:00]} h5 {[%emt 0:00:00]} 21. Rc1 {[%emt 0:
00:00]} Qb8 {[%emt 0:00:00]} 22. Nc5 {[%emt 0:00:00]} h4 {[%emt 0:00:00]} 23.
Bg2 {[%emt 0:00:00]} Ng6 {[%emt 0:00:00]} 24. Rc2 {[%emt 0:00:00]} Rc8 {
[%emt 0:00:00]} 25. Rce2 {[%emt 0:00:00]} Qa7 {[%emt 0:00:05]} 26. Bh3 {
[%emt 0:00:03]} Ra8 {[%emt 0:00:20]} 27. Ne6 {[%emt 0:00:10]} Rfe8 {[%emt 0:00:
05]} 28. Ng5 {[%emt 0:00:02]} Rxe2 {[%emt 0:00:13]} 29. Rxe2 {[%emt 0:00:01]}
hxg3 {[%emt 0:00:01]} 30. hxg3 {[%emt 0:00:01]} Nf8 {[%emt 0:00:03]} 31. Nf3 {
[%emt 0:00:20]} a5 {[%emt 0:00:00]} 32. b5 {[%emt 0:00:03]} a4 {[%emt 0:00:01]}
33. Ne5 {[%emt 0:00:03]} Qb6 {[%emt 0:00:06]} 34. Re3 {[%emt 0:00:06]} Ra5 {
[%emt 0:00:05]} 35. Bf1 {[%emt 0:00:01]} Ra8 {[%emt 0:00:00]} 36. Rf3 {[%emt 0:
00:06]} Rc8 {[%emt 0:00:05]} 37. Qf5 {[%emt 0:00:04]} Qd8 {[%emt 0:00:06]} 38.
Bd3 {[%emt 0:00:02]} Rc7 {[%emt 0:00:04]} 39. g4 {[%emt 0:00:05]} Bxe5 {
[%emt 0:00:06]} 40. dxe5 {[%emt 0:00:04]} N6h7 {[%emt 0:00:00]} 41. Rh3 {
[%emt 0:00:07]} g6 {[%emt 0:00:02]} 42. Qf4 {[%emt 0:00:04]} Qg5 {[%emt 0:00:
02]} 43. Qh2 {[%emt 0:00:04]} Rc8 {[%emt 0:00:05]} 44. f4 {[%emt 0:00:02]}
Qxg4+ {[%emt 0:00:02]} 45. Qg3 {[%emt 0:00:05]} Qd1+ {[%emt 0:00:02]} 46. Kg2 {
[%emt 0:00:01]} Qb1 {[%emt 0:00:04]} 47. Bxb1 {[%emt 0:00:02]} 1-0

[Event "Blitz tournament"]
[Site "Biel, Switzerland"]
[Date "2021.07.31"]
[Round "5.3"]
[White "Nihal, Sarin"]
[Black "Alekseenko, Kirill"]
[Result "0-1"]
[ECO "A13"]
[WhiteElo "2658"]
[BlackElo "2580"]
[PlyCount "70"]
[EventDate "2021.??.??"]
[EventType "blitz"]
[TimeControl "3+2"]
[WhiteClock "0:00:03"]
[BlackClock "0:00:04"]

1. Nf3 {[%emt 0:00:00]} d5 {[%emt 0:00:00]} 2. e3 {[%emt 0:00:00]} Nf6 {
[%emt 0:00:00]} 3. c4 {[%emt 0:00:00]} e6 {[%emt 0:00:00]} 4. b3 {[%emt 0:00:
00]} b6 {[%emt 0:00:00]} 5. Bb2 {[%emt 0:00:00]} Bd6 {[%emt 0:00:00]} 6. Nc3 {
[%emt 0:00:00]} a6 {[%emt 0:00:00]} 7. cxd5 {[%emt 0:00:00]} exd5 {[%emt 0:00:
00]} 8. g3 {[%emt 0:00:00]} O-O {[%emt 0:00:00]} 9. Bg2 {[%emt 0:00:00]} Bb7 {
[%emt 0:00:00]} 10. O-O {[%emt 0:00:00]} Nbd7 {[%emt 0:00:00]} 11. Rc1 {
[%emt 0:00:00]} Re8 {[%emt 0:00:00]} 12. Ne2 {[%emt 0:00:00]} Rc8 {[%emt 0:00:
00]} 13. Ned4 {[%emt 0:00:00]} c5 {[%emt 0:00:00]} 14. Nf5 {[%emt 0:00:00]} Bf8
{[%emt 0:00:00]} 15. N3h4 {[%emt 0:00:00]} g6 {[%emt 0:00:00]} 16. Qf3 {
[%emt 0:00:00]} Ne4 {[%emt 0:00:00]} 17. Qf4 {[%emt 0:00:00]} gxf5 {[%emt 0:00:
00]} 18. d3 {[%emt 0:00:00]} Ng5 {[%emt 0:00:05]} 19. Nxf5 {[%emt 0:00:00]} Ne6
{[%emt 0:00:04]} 20. Qg4+ {[%emt 0:00:00]} Qg5 {[%emt 0:00:01]} 21. Qh3 {
[%emt 0:00:00]} Qg6 {[%emt 0:00:12]} 22. f4 {[%emt 0:00:04]} Bg7 {[%emt 0:00:
11]} 23. Nxg7 {[%emt 0:00:05]} Nxg7 {[%emt 0:00:05]} 24. Qxd7 {[%emt 0:00:01]}
Bc6 {[%emt 0:00:02]} 25. Qa7 {[%emt 0:00:25]} Qxd3 {[%emt 0:00:02]} 26. Qxb6 {
[%emt 0:00:02]} Qxe3+ {[%emt 0:00:07]} 27. Kh1 {[%emt 0:00:00]} Bb5 {[%emt 0:
00:01]} 28. Bxd5 {[%emt 0:00:16]} Ne6 {[%emt 0:00:11]} 29. Rfe1 {[%emt 0:00:05]
} Qf2 {[%emt 0:00:01]} 30. Be5 {[%emt 0:00:04]} Rcd8 {[%emt 0:00:01]} 31. Bxe6
{[%emt 0:00:05]} fxe6 {[%emt 0:00:03]} 32. Qc7 {[%emt 0:00:01]} Rd7 {[%emt 0:
00:02]} 33. Qxc5 {[%emt 0:00:01]} Qf3+ {[%emt 0:00:03]} 34. Kg1 {[%emt 0:00:01]
} Rd2 {[%emt 0:00:02]} 35. Rc2 {[%emt 0:00:05]} Qg2# {[%emt 0:00:01]} 0-1

[Event "Blitz tournament"]
[Site "Biel, Switzerland"]
[Date "2021.07.31"]
[Round "6.1"]
[White "Keymer, Vincent"]
[Black "Kamsky, Gata"]
[Result "1/2-1/2"]
[ECO "D94"]
[WhiteElo "2474"]
[BlackElo "2644"]
[PlyCount "81"]
[EventDate "2021.??.??"]
[EventType "blitz"]
[TimeControl "3+2"]
[WhiteClock "0:00:09"]
[BlackClock "0:00:56"]

1. Nf3 {[%emt 0:00:00]} Nf6 {[%emt 0:00:00]} 2. c4 {[%emt 0:00:00]} c6 {
[%emt 0:00:00]} 3. Nc3 {[%emt 0:00:00]} d5 {[%emt 0:00:00]} 4. e3 {[%emt 0:00:
00]} g6 {[%emt 0:00:00]} 5. d4 {[%emt 0:00:00]} Bg7 {[%emt 0:00:00]} 6. Be2 {
[%emt 0:00:00]} O-O {[%emt 0:00:00]} 7. O-O {[%emt 0:00:00]} a6 {[%emt 0:00:00]
} 8. a4 {[%emt 0:00:00]} a5 {[%emt 0:00:00]} 9. cxd5 {[%emt 0:00:00]} cxd5 {
[%emt 0:00:00]} 10. b3 {[%emt 0:00:00]} Nc6 {[%emt 0:00:00]} 11. Ba3 {[%emt 0:
00:00]} Bg4 {[%emt 0:00:00]} 12. h3 {[%emt 0:00:00]} Bxf3 {[%emt 0:00:00]} 13.
Bxf3 {[%emt 0:00:00]} Re8 {[%emt 0:00:00]} 14. Rc1 {[%emt 0:00:00]} e6 {
[%emt 0:00:00]} 15. Be2 {[%emt 0:00:00]} Bf8 {[%emt 0:00:00]} 16. Bb2 {[%emt 0:
00:00]} Qb6 {[%emt 0:00:00]} 17. Bb5 {[%emt 0:00:00]} Rec8 {[%emt 0:00:00]} 18.
Qf3 {[%emt 0:00:00]} Be7 {[%emt 0:00:00]} 19. Rfd1 {[%emt 0:00:00]} Nb4 {
[%emt 0:00:00]} 20. g4 {[%emt 0:00:00]} Qd8 {[%emt 0:00:00]} 21. Bf1 {[%emt 0:
00:00]} Rc6 {[%emt 0:00:00]} 22. Nb5 {[%emt 0:00:00]} Rac8 {[%emt 0:00:00]} 23.
Na7 {[%emt 0:00:00]} Rxc1 {[%emt 0:00:00]} 24. Rxc1 {[%emt 0:00:00]} Rxc1 {
[%emt 0:00:00]} 25. Bxc1 {[%emt 0:00:00]} Qc7 {[%emt 0:00:00]} 26. Qd1 {
[%emt 0:00:00]} Ne4 {[%emt 0:00:00]} 27. Nb5 {[%emt 0:00:03]} Qc2 {[%emt 0:00:
00]} 28. Qxc2 {[%emt 0:00:05]} Nxc2 {[%emt 0:00:00]} 29. f3 {[%emt 0:00:16]}
Nd6 {[%emt 0:00:00]} 30. Nxd6 {[%emt 0:00:13]} Bxd6 {[%emt 0:00:00]} 31. Be2 {
[%emt 0:00:02]} f5 {[%emt 0:00:00]} 32. Kf2 {[%emt 0:00:04]} Kf7 {[%emt 0:00:
00]} 33. Bd1 {[%emt 0:00:12]} Nb4 {[%emt 0:00:00]} 34. Bd2 {[%emt 0:00:02]} b6
{[%emt 0:00:00]} 35. Be2 {[%emt 0:00:02]} Kf6 {[%emt 0:00:00]} 36. Bb5 {
[%emt 0:00:07]} g5 {[%emt 0:00:00]} 37. f4 {[%emt 0:00:04]} h6 {[%emt 0:00:12]}
38. Be2 {[%emt 0:00:04]} gxf4 {[%emt 0:00:09]} 39. exf4 {[%emt 0:00:01]} Nc2 {
[%emt 0:00:03]} 40. Be3 {[%emt 0:00:04]} Nxe3 {[%emt 0:00:08]} 41. Kxe3 {
[%emt 0:00:02]} 1/2-1/2

[Event "Blitz tournament"]
[Site "Biel, Switzerland"]
[Date "2021.07.31"]
[Round "6.2"]
[White "Nihal, Sarin"]
[Black "Lagarde, Maxime"]
[Result "1-0"]
[ECO "A01"]
[WhiteElo "2658"]
[BlackElo "2630"]
[PlyCount "102"]
[EventDate "2021.??.??"]
[EventType "blitz"]
[TimeControl "3+2"]
[WhiteClock "0:00:06"]
[BlackClock "0:00:05"]

1. b3 {[%emt 0:00:00]} e5 {[%emt 0:00:00]} 2. Bb2 {[%emt 0:00:00]} Nc6 {
[%emt 0:00:00]} 3. c4 {[%emt 0:00:00]} g6 {[%emt 0:00:00]} 4. e3 {[%emt 0:00:
00]} Bg7 {[%emt 0:00:00]} 5. Nf3 {[%emt 0:00:00]} d6 {[%emt 0:00:00]} 6. Nc3 {
[%emt 0:00:00]} Nge7 {[%emt 0:00:00]} 7. d3 {[%emt 0:00:00]} O-O {[%emt 0:00:
00]} 8. Be2 {[%emt 0:00:00]} h6 {[%emt 0:00:00]} 9. O-O {[%emt 0:00:00]} g5 {
[%emt 0:00:00]} 10. Nd2 {[%emt 0:00:00]} f5 {[%emt 0:00:00]} 11. a3 {[%emt 0:
00:00]} Be6 {[%emt 0:00:00]} 12. b4 {[%emt 0:00:00]} Qd7 {[%emt 0:00:00]} 13.
Rc1 {[%emt 0:00:00]} Rae8 {[%emt 0:00:00]} 14. Bh5 {[%emt 0:00:00]} Bf7 {
[%emt 0:00:00]} 15. Bxf7+ {[%emt 0:00:00]} Rxf7 {[%emt 0:00:00]} 16. Nd5 {
[%emt 0:00:00]} Nxd5 {[%emt 0:00:00]} 17. cxd5 {[%emt 0:00:00]} Ne7 {[%emt 0:
00:00]} 18. e4 {[%emt 0:00:00]} g4 {[%emt 0:00:00]} 19. Rc2 {[%emt 0:00:00]}
Ng6 {[%emt 0:00:00]} 20. Bc1 {[%emt 0:00:00]} f4 {[%emt 0:00:00]} 21. f3 {
[%emt 0:00:00]} h5 {[%emt 0:00:00]} 22. Nb3 {[%emt 0:00:00]} c6 {[%emt 0:00:00]
} 23. dxc6 {[%emt 0:00:00]} bxc6 {[%emt 0:00:00]} 24. Na5 {[%emt 0:00:00]} Rc8
{[%emt 0:00:00]} 25. Kh1 {[%emt 0:00:00]} Bf6 {[%emt 0:00:00]} 26. Bb2 {
[%emt 0:00:00]} Bd8 {[%emt 0:00:00]} 27. d4 {[%emt 0:00:00]} Bxa5 28. bxa5 {
[%emt 0:00:00]} Qe6 {[%emt 0:00:34]} 29. Qd3 {[%emt 0:00:00]} Rb7 {[%emt 0:00:
06]} 30. Ba1 {[%emt 0:00:05]} Qb3 {[%emt 0:00:03]} 31. Rc3 {[%emt 0:00:15]} Qb5
{[%emt 0:00:02]} 32. Rc4 {[%emt 0:00:19]} Kh7 {[%emt 0:00:01]} 33. a4 {[%emt 0:
00:12]} Qb3 {[%emt 0:00:03]} 34. Qe2 {[%emt 0:00:07]} g3 {[%emt 0:00:05]} 35.
dxe5 {[%emt 0:00:13]} dxe5 {[%emt 0:00:02]} 36. Rc5 {[%emt 0:00:00]} Qb4 {
[%emt 0:00:08]} 37. Rcc1 {[%emt 0:00:02]} Qxa4 {[%emt 0:00:08]} 38. hxg3 fxg3 {
[%emt 0:00:01]} 39. f4 {[%emt 0:00:03]} Kg8 {[%emt 0:00:05]} 40. f5 {[%emt 0:
00:04]} Nf4 {[%emt 0:00:01]} 41. Qf3 {[%emt 0:00:02]} Qb3 {[%emt 0:00:04]} 42.
Bxe5 {[%emt 0:00:04]} Qxf3 43. Rxf3 {[%emt 0:00:01]} Ne2 {[%emt 0:00:04]} 44.
Re1 {[%emt 0:00:00]} Re8 {[%emt 0:00:03]} 45. Bxg3 {[%emt 0:00:07]} Rxe4 {
[%emt 0:00:01]} 46. Kh2 {[%emt 0:00:02]} Rb2 {[%emt 0:00:02]} 47. Bf2 {[%emt 0:
00:02]} Kf7 {[%emt 0:00:03]} 48. Rd1 {[%emt 0:00:01]} Nc3 {[%emt 0:00:04]} 49.
Rd7+ {[%emt 0:00:02]} Ke8 {[%emt 0:00:00]} 50. Rxa7 {[%emt 0:00:02]} Nd5 {
[%emt 0:00:03]} 51. f6 {[%emt 0:00:01]} Nxf6 {[%emt 0:00:05]} 1-0

[Event "Blitz tournament"]
[Site "Biel, Switzerland"]
[Date "2021.07.31"]
[Round "6.3"]
[White "Gelfand, Boris"]
[Black "Studer, Noël"]
[Result "1-0"]
[ECO "E04"]
[WhiteElo "2691"]
[BlackElo "2451"]
[PlyCount "101"]
[EventDate "2021.??.??"]
[EventType "blitz"]
[TimeControl "3+2"]
[WhiteClock "0:00:09"]
[BlackClock "0:00:03"]

1. d4 {[%emt 0:00:00]} Nf6 {[%emt 0:00:00]} 2. c4 {[%emt 0:00:00]} e6 {[%emt 0:
00:00]} 3. Nf3 {[%emt 0:00:00]} d5 {[%emt 0:00:00]} 4. g3 {[%emt 0:00:00]} dxc4
{[%emt 0:00:00]} 5. Bg2 {[%emt 0:00:00]} a6 {[%emt 0:00:00]} 6. O-O {[%emt 0:
00:00]} Nc6 {[%emt 0:00:00]} 7. Qd2 {[%emt 0:00:00]} Rb8 {[%emt 0:00:00]} 8.
Ne5 {[%emt 0:00:00]} Nxe5 {[%emt 0:00:00]} 9. dxe5 {[%emt 0:00:00]} Nd5 {
[%emt 0:00:00]} 10. Qc2 {[%emt 0:00:00]} Nb6 {[%emt 0:00:00]} 11. Rd1 {[%emt 0:
00:00]} Bd7 {[%emt 0:00:00]} 12. Be3 {[%emt 0:00:00]} Qc8 {[%emt 0:00:00]} 13.
Nd2 {[%emt 0:00:00]} Ba4 {[%emt 0:00:00]} 14. b3 {[%emt 0:00:00]} cxb3 {
[%emt 0:00:00]} 15. axb3 {[%emt 0:00:00]} Bb5 {[%emt 0:00:00]} 16. Ne4 {
[%emt 0:00:00]} Nd5 {[%emt 0:00:00]} 17. Bc5 {[%emt 0:00:00]} Bxc5 {[%emt 0:00:
00]} 18. Qxc5 {[%emt 0:00:00]} b6 {[%emt 0:00:00]} 19. Qc2 {[%emt 0:00:00]} h6
{[%emt 0:00:00]} 20. Rd4 {[%emt 0:00:00]} O-O {[%emt 0:00:00]} 21. Qd2 {
[%emt 0:00:00]} c5 {[%emt 0:00:00]} 22. Nd6 {[%emt 0:00:00]} Qd8 {[%emt 0:00:
00]} 23. Rg4 {[%emt 0:00:00]} f5 {[%emt 0:00:00]} 24. Bxd5 {[%emt 0:00:08]}
fxg4 {[%emt 0:00:00]} 25. Bxe6+ {[%emt 0:00:01]} Kh8 {[%emt 0:00:00]} 26. Bxg4
{[%emt 0:00:04]} Qe7 {[%emt 0:00:00]} 27. f4 {[%emt 0:00:02]} Rbd8 {[%emt 0:00:
00]} 28. Bf3 {[%emt 0:00:03]} Qe6 {[%emt 0:00:00]} 29. Qd5 {[%emt 0:00:07]} Qg6
{[%emt 0:00:08]} 30. Kf2 {[%emt 0:00:08]} Rd7 {[%emt 0:00:14]} 31. Be4 {
[%emt 0:00:08]} Qh5 {[%emt 0:00:01]} 32. h4 {[%emt 0:00:00]} Qxe2+ {[%emt 0:00:
02]} 33. Kg1 {[%emt 0:00:02]} Qe3+ {[%emt 0:00:10]} 34. Kh2 {[%emt 0:00:01]}
Rc7 {[%emt 0:00:06]} 35. Qd1 {[%emt 0:00:25]} Bc6 {[%emt 0:00:25]} 36. Bxc6 {
[%emt 0:00:03]} Rxc6 {[%emt 0:00:01]} 37. Rxa6 {[%emt 0:00:05]} Qf2+ {[%emt 0:
00:06]} 38. Kh3 {[%emt 0:00:00]} Rc7 {[%emt 0:00:02]} 39. Ra1 {[%emt 0:00:04]}
Rd7 {[%emt 0:00:05]} 40. Qd5 {[%emt 0:00:02]} b5 {[%emt 0:00:03]} 41. h5 {
[%emt 0:00:01]} Qe2 {[%emt 0:00:01]} 42. Kh4 {[%emt 0:00:03]} Qh2+ {[%emt 0:00:
02]} 43. Kg4 {[%emt 0:00:00]} Qe2+ {[%emt 0:00:02]} 44. Qf3 {[%emt 0:00:01]}
Qb2 {[%emt 0:00:01]} 45. Ra8 {[%emt 0:00:02]} Rxa8 {[%emt 0:00:05]} 46. Qxa8+ {
[%emt 0:00:01]} Kh7 {[%emt 0:00:01]} 47. Qe4+ {[%emt 0:00:01]} Kh8 {[%emt 0:00:
00]} 48. e6 {[%emt 0:00:02]} Re7 {[%emt 0:00:04]} 49. Nf7+ {[%emt 0:00:07]}
Rxf7 {[%emt 0:00:04]} 50. exf7 {[%emt 0:00:00]} Qf6 {[%emt 0:00:02]} 51. Qe8+ {
[%emt 0:00:00]} 1-0

[Event "Blitz tournament"]
[Site "Biel, Switzerland"]
[Date "2021.07.31"]
[Round "7.2"]
[White "Alekseenko, Kirill"]
[Black "Gelfand, Boris"]
[Result "1-0"]
[ECO "B30"]
[WhiteElo "2580"]
[BlackElo "2691"]
[PlyCount "55"]
[EventDate "2021.??.??"]
[EventType "blitz"]
[TimeControl "3+2"]
[WhiteClock "0:00:36"]
[BlackClock "0:00:34"]

1. e4 {[%emt 0:00:00]} c5 {[%emt 0:00:00]} 2. Nc3 {[%emt 0:00:00]} Nc6 {
[%emt 0:00:00]} 3. Bb5 {[%emt 0:00:00]} Nd4 {[%emt 0:00:00]} 4. Nf3 {[%emt 0:
00:00]} e6 {[%emt 0:00:00]} 5. O-O {[%emt 0:00:00]} a6 {[%emt 0:00:00]} 6. Bd3
{[%emt 0:00:00]} Nc6 {[%emt 0:00:00]} 7. Be2 {[%emt 0:00:00]} Nd4 {[%emt 0:00:
00]} 8. a3 {[%emt 0:00:00]} Ne7 {[%emt 0:00:00]} 9. b4 {[%emt 0:00:00]} Nec6 {
[%emt 0:00:00]} 10. Bb2 {[%emt 0:00:00]} cxb4 {[%emt 0:00:00]} 11. axb4 {
[%emt 0:00:00]} Bxb4 {[%emt 0:00:00]} 12. Nxd4 {[%emt 0:00:00]} Nxd4 {[%emt 0:
00:00]} 13. Na4 {[%emt 0:00:00]} Nxe2+ {[%emt 0:00:00]} 14. Qxe2 {[%emt 0:00:
00]} O-O {[%emt 0:00:00]} 15. Qg4 {[%emt 0:00:00]} e5 {[%emt 0:00:00]} 16. Bxe5
{[%emt 0:00:00]} f6 {[%emt 0:00:00]} 17. Bd4 {[%emt 0:00:00]} d5 {[%emt 0:00:
00]} 18. Qf3 {[%emt 0:00:00]} dxe4 {[%emt 0:00:00]} 19. Qb3+ {[%emt 0:00:00]}
Rf7 {[%emt 0:00:00]} 20. Qxb4 {[%emt 0:00:00]} Bg4 {[%emt 0:00:00]} 21. d3 {
[%emt 0:00:00]} exd3 {[%emt 0:00:21]} 22. cxd3 {[%emt 0:00:00]} b5 {[%emt 0:00:
01]} 23. Nb6 {[%emt 0:00:05]} a5 {[%emt 0:00:02]} 24. Qxb5 {[%emt 0:00:12]} Rb8
25. Be3 {[%emt 0:00:01]} Be2 {[%emt 0:00:01]} 26. Rfc1 {[%emt 0:00:03]} Bxd3 {
[%emt 0:00:01]} 27. Qxa5 {[%emt 0:00:02]} Rfb7 {[%emt 0:00:02]} 28. Rd1 {
[%emt 0:00:05]} 1-0

[Event "Blitz tournament"]
[Site "Biel, Switzerland"]
[Date "2021.07.31"]
[Round "7.3"]
[White "Studer, Noël"]
[Black "Nihal, Sarin"]
[Result "0-1"]
[ECO "E05"]
[WhiteElo "2451"]
[BlackElo "2658"]
[PlyCount "50"]
[EventDate "2021.??.??"]
[EventType "blitz"]
[TimeControl "3+2"]
[WhiteClock "0:00:55"]
[BlackClock "0:01:58"]

1. d4 {[%emt 0:00:00]} Nf6 {[%emt 0:00:00]} 2. c4 {[%emt 0:00:00]} e6 {[%emt 0:
00:00]} 3. Nf3 {[%emt 0:00:00]} d5 {[%emt 0:00:00]} 4. g3 {[%emt 0:00:01]} Be7
{[%emt 0:00:00]} 5. Bg2 {[%emt 0:00:00]} O-O {[%emt 0:00:00]} 6. O-O {[%emt 0:
00:00]} dxc4 {[%emt 0:00:00]} 7. Qc2 {[%emt 0:00:00]} b5 {[%emt 0:00:00]} 8. a4
{[%emt 0:00:00]} b4 {[%emt 0:00:00]} 9. Nfd2 {[%emt 0:00:00]} Nd5 {[%emt 0:00:
00]} 10. Nxc4 {[%emt 0:00:00]} c5 {[%emt 0:00:00]} 11. dxc5 {[%emt 0:00:00]}
Ba6 {[%emt 0:00:00]} 12. Ne3 {[%emt 0:00:00]} Nd7 {[%emt 0:00:00]} 13. Nxd5 {
[%emt 0:00:00]} exd5 {[%emt 0:00:00]} 14. c6 {[%emt 0:00:00]} Rc8 {[%emt 0:00:
00]} 15. Bf4 {[%emt 0:00:00]} Nc5 {[%emt 0:00:00]} 16. Rd1 {[%emt 0:00:00]} d4
{[%emt 0:00:00]} 17. Nd2 {[%emt 0:00:00]} Bxe2 {[%emt 0:00:00]} 18. Nb3 {
[%emt 0:00:00]} d3 {[%emt 0:00:00]} 19. Qc4 {[%emt 0:00:00]} Nxb3 {[%emt 0:00:
00]} 20. Qxb3 {[%emt 0:00:00]} Bc5 {[%emt 0:00:00]} 21. Rd2 {[%emt 0:00:00]}
Re8 {[%emt 0:00:00]} 22. Bd5 {[%emt 0:00:00]} Qf6 {[%emt 0:00:00]} 23. Qc4 {
[%emt 0:00:00]} Rxc6 {[%emt 0:00:00]} 24. Bxc6 {[%emt 0:00:00]} Qxc6 {[%emt 0:
00:00]} 25. Rc1 {[%emt 0:00:02]} Bf1 {[%emt 0:00:00]} 0-1